fUSD/lending_fUSD_20240923
["ID","MTS","AMOUNT","RATE_DAILY","PERIOD"]
[338958429,1727089880131,-730.69,0.00012999,2]
[338958430,1727089880141,-633.41,0.00012999,2]
[338958431,1727089880150,-4081.23,0.00012999,2]
[338958432,1727089880160,-730.69,0.00012999,2]
[338958433,1727089880169,-4081.25921809,0.00012999,2]
[338958434,1727089880179,-633.41,0.00012999,2]
[338958435,1727089880189,-730.69,0.00012999,2]
[338958436,1727089880199,-633.41,0.00012999,2]
[338958437,1727089880209,-730.69,0.00012999,2]
[338958438,1727089880218,-633.41,0.00012999,2]
[338958439,1727089880229,-730.69,0.00012999,2]
[338958440,1727089880239,-633.41,0.00012999,2]
[338958441,1727089880249,-633.41,0.00012999,2]
[338958442,1727089880260,-633.41,0.00012999,2]
[338958443,1727089880270,-275.622173,0.00012999,2]
[338958444,1727089880281,-633.41,0.00012999,2]
[338958445,1727089880292,-633.41,0.00012999,2]
[338958446,1727089880303,-633.57,0.00012999,2]
[338958447,1727089880314,-221.48,0.00012999,2]
[338958448,1727089880324,-730.69,0.00012999,2]
[338958449,1727089880335,-730.69,0.00012999,2]
[338958450,1727089880345,-730.69,0.00012999,2]
[338958451,1727089880355,-730.69,0.00012999,2]
[338958452,1727089880365,-730.69,0.00012999,2]
[338958453,1727089880375,-1128.122441,0.00012999,2]
[338958454,1727089880386,-730.69,0.00012999,2]
[338958455,1727089880395,-730.69,0.00012999,2]
[338958456,1727089880406,-1128.122441,0.00012999,2]
[338958457,1727089880417,-730.72070248,0.00012999,2]
[338958458,1727089880427,-500.0,0.00012999,2]
[338958459,1727089880438,-599.06,0.00012999,2]
[338958460,1727089880448,-2354.99,0.00012999,2]
[338958461,1727089880459,-2354.99,0.00012999,2]
[338958462,1727089880468,-2354.99,0.00012999,2]
[338958463,1727089880479,-2354.99,0.00012999,2]
[338958464,1727089880489,-2354.99,0.00012999,2]
[338958465,1727089880499,-2354.99,0.00012999,2]
[338958466,1727089880510,-1128.122441,0.00012999,2]
[338958467,1727089880520,-2354.99,0.00012999,2]
[338958468,1727089880530,-1128.122441,0.00012999,2]
[338958469,1727089880540,-2354.99,0.00012999,2]
[338958470,1727089880550,-2354.99,0.00012999,2]
[338958471,1727089880560,-2354.99,0.00012999,2]
[338958472,1727089880572,-2354.99,0.00012999,2]
[338958473,1727089880582,-2355.1276744,0.00012999,2]
[338958474,1727089880591,-779.72,0.00012999,2]
[338958475,1727089880601,-779.72,0.00012999,2]
[338958476,1727089880612,-779.72,0.00012999,2]
[338958477,1727089880621,-779.72,0.00012999,2]
[338958478,1727089880631,-779.72,0.00012999,2]
[338958479,1727089880642,-779.72,0.00012999,2]
[338958480,1727089880652,-779.72,0.00012999,2]
[338958481,1727089880661,-779.72,0.00012999,2]
[338958482,1727089880672,-779.72,0.00012999,2]
[338958483,1727089880682,-779.72,0.00012999,2]
[338958484,1727089880693,-779.72,0.00012999,2]
[338958485,1727089880703,-779.72,0.00012999,2]
[338958486,1727089880712,-779.72,0.00012999,2]
[338958487,1727089880722,-779.72,0.00012999,2]
[338958488,1727089880733,-779.9339808,0.00012999,2]
[338958489,1727089880742,-941.99,0.00012999,2]
[338958490,1727089880752,-941.99,0.00012999,2]
[338958491,1727089880761,-941.99,0.00012999,2]
[338958492,1727089880771,-941.99,0.00012999,2]
[338958493,1727089880780,-941.99,0.00012999,2]
[338958494,1727089880790,-941.99,0.00012999,2]
[338958495,1727089880799,-500.0,0.00012999,2]
[338958496,1727089880808,-500.0,0.00012999,2]
[338958497,1727089880819,-941.99,0.00012999,2]
[338958498,1727089880828,-500.0,0.00012999,2]
[338958499,1727089880837,-941.99,0.00012999,2]
[338958500,1727089880847,-941.99,0.00012999,2]
[338958501,1727089880856,-500.0,0.00012999,2]
[338958502,1727089880866,-942.22687721,0.00012999,2]
[338958503,1727089880875,-500.0,0.00012999,2]
[338958504,1727089880885,-570.42,0.00012999,2]
[338958505,1727089880894,-475.26838409,0.00012999,2]
[338958506,1727089880904,-839.9,0.00012999,2]
[338958507,1727089880913,-839.9,0.00012999,2]
[338958508,1727089880923,-839.9,0.00012999,2]
[338958509,1727089880932,-839.9,0.00012999,2]
[338958510,1727089880943,-688.12,0.00012999,2]
[338958511,1727089880953,-839.9,0.00012999,2]
[338958512,1727089880963,-688.12,0.00012999,2]
[338958513,1727089880972,-839.9,0.00012999,2]
[338958514,1727089880982,-264.29574,0.00012999,2]
[338958515,1727089880992,-688.12,0.00012999,2]
[338958516,1727089881002,-839.9,0.00012999,2]
[338958517,1727089881011,-264.29574,0.00012999,2]
[338958518,1727089881021,-688.12,0.00012999,2]
[338958519,1727089881031,-839.9,0.00012999,2]
[338958520,1727089881040,-839.9,0.00012999,2]
[338958521,1727089881050,-264.29574,0.00012999,2]
[338958522,1727089881060,-688.12,0.00012999,2]
[338958523,1727089881069,-688.12,0.00012999,2]
[338958524,1727089881079,-840.01697373,0.00012999,2]
[338958525,1727089881088,-688.12,0.00012999,2]
[338958526,1727089881098,-688.12,0.00012999,2]
[338958527,1727089881108,-688.12,0.00012999,2]
[338958528,1727089881118,-688.12,0.00012999,2]
[338958529,1727089881128,-688.12,0.00012999,2]
[338958530,1727089881138,-688.12,0.00012999,2]
[338958531,1727089881148,-264.29574,0.00012999,2]
[338958532,1727089881157,-688.12,0.00012999,2]
[338958533,1727089881167,-264.29574,0.00012999,2]
[338958534,1727089881177,-688.12,0.00012999,2]
[338958535,1727089881187,-264.29574,0.00012999,2]
[338958536,1727089881197,-688.35464079,0.00012999,2]
[338958537,1727089881207,-166.23006,0.00012999,2]
[338958538,1727089881217,-3116.47,0.00012999,2]
[338958539,1727089881227,-3116.47,0.00012999,2]
[338958540,1727089881238,-3116.47,0.00012999,2]
[338958541,1727089881248,-3116.47,0.00012999,2]
[338958542,1727089881258,-3116.47,0.00012999,2]
[338958543,1727089881268,-2246.12,0.00012999,2]
[338958544,1727089881278,-3116.47,0.00012999,2]
[338958545,1727089881289,-2246.12,0.00012999,2]
[338958546,1727089881298,-3116.47,0.00012999,2]
[338958547,1727089881308,-2246.12,0.00012999,2]
[338958548,1727089881317,-3116.47,0.00012999,2]
[338958549,1727089881326,-2246.12,0.00012999,2]
[338958550,1727089881336,-3116.47,0.00012999,2]
[338958551,1727089881345,-2246.12,0.00012999,2]
[338958552,1727089881355,-3116.5,0.00012999,2]
[338958553,1727089881364,-1717.45,0.00012999,2]
[338958554,1727089881374,-2246.12,0.00012999,2]
[338958555,1727089881383,-1717.45,0.00012999,2]
[338958556,1727089881392,-2246.12,0.00012999,2]
[338958557,1727089881402,-1717.45,0.00012999,2]
[338958558,1727089881412,-1717.45,0.00012999,2]
[338958559,1727089881421,-2246.12,0.00012999,2]
[338958560,1727089881431,-2246.12,0.00012999,2]
[338958561,1727089881441,-1717.45,0.00012999,2]
[338958562,1727089881451,-2246.12,0.00012999,2]
[338958563,1727089881461,-1717.45,0.00012999,2]
[338958564,1727089881471,-2246.12,0.00012999,2]
[338958565,1727089881481,-1717.45,0.00012999,2]
[338958566,1727089881491,-2246.12,0.00012999,2]
[338958567,1727089881501,-1717.45,0.00012999,2]
[338958568,1727089881510,-2246.12,0.00012999,2]
[338958569,1727089881520,-2246.12,0.00012999,2]
[338958570,1727089881529,-1717.45,0.00012999,2]
[338958571,1727089881539,-2246.29853517,0.00012999,2]
[338958572,1727089881549,-1717.63,0.00012999,2]
[338958573,1727089881558,-1811.84,0.00012999,2]
[338958574,1727089881570,-1811.84,0.00012999,2]
[338958575,1727089881579,-1811.84,0.00012999,2]
[338958576,1727089881589,-586.381781,0.00012999,2]
[338958577,1727089881598,-1811.84,0.00012999,2]
[338958578,1727089881607,-1811.84,0.00012999,2]
[338958579,1727089881616,-1811.84,0.00012999,2]
[338958580,1727089881626,-1811.84,0.00012999,2]
[338958581,1727089881635,-1655.61975815,0.00012999,2]
[338958582,1727089881857,-156.22024185,0.00012999,2]
[338958583,1727089881867,-1811.84,0.00012999,2]
[338958584,1727089881878,-1811.89,0.00012999,2]
[338958585,1727089881888,-2622.82,0.00012999,2]
[338958586,1727089881897,-2622.82,0.00012999,2]
[338958587,1727089881906,-2622.82,0.00012999,2]
[338958588,1727089881916,-2622.82,0.00012999,2]
[338958589,1727089881926,-2622.82,0.00012999,2]
[338958590,1727089881937,-2622.82,0.00012999,2]
[338958591,1727089881947,-2622.82,0.00012999,2]
[338958592,1727089881958,-2622.82,0.00012999,2]
[338958593,1727089881967,-11.72809261,0.00012999,2]
[338958594,1727089881980,-793.38664399,0.00012999,2]
[338958595,1727089881991,-1182.8,0.00012999,2]
[338958596,1727089882009,-500.0,0.00012988,2]
[338958597,1727089882019,-634.9052634,0.00012999,2]
[338958598,1727089882028,-1949.46383417,0.00012999,2]
[338958599,1727089882039,-673.35616583,0.00012999,2]
[338958600,1727089882049,-521.80495861,0.00012999,2]
[338958601,1727089882061,-2101.01504139,0.00012999,2]
[338958602,1727089882071,-586.381781,0.00012999,2]
[338958603,1727089882080,-1572.36,0.00012999,2]
[338958604,1727089882090,-2622.82,0.00012999,2]
[338958605,1727089882099,-1572.36,0.00012999,2]
[338958606,1727089882108,-1188.98357133,0.00012999,2]
[338958607,1727089882120,-1433.83642867,0.00012999,2]
[338958608,1727089882129,-1572.36,0.00012999,2]
[338958609,1727089882139,-2622.82,0.00012999,2]
[338958610,1727089882148,-1572.36,0.00012999,2]
[338958611,1727089882158,-2622.89302245,0.00012999,2]
[338958612,1727089882167,-1572.36,0.00012999,2]
[338958613,1727089882176,-1572.36,0.00012999,2]
[338958614,1727089882185,-1572.36,0.00012999,2]
[338958615,1727089882195,-1499.15054888,0.00012999,2]
[338958616,1727089882206,-73.20945112,0.00012999,2]
[338958617,1727089882215,-400.07077957,0.00012999,2]
[338958618,1727089882227,-1172.28922043,0.00012999,2]
[338958619,1727089882236,-1313.1415862,0.00012999,2]
[338958620,1727089882250,-259.2184138,0.00012999,2]
[338958621,1727089882261,-58.8215862,0.00012999,2]
[338958622,1727089882274,-460.63094984,0.00012999,2]
[338958623,1727089882286,-1041.85,0.00012999,2]
[338958624,1727089882298,-11.05746396,0.00012999,2]
[338958625,1727089882309,-1572.36,0.00012999,2]
[338958626,1727089882320,-1572.52318605,0.00012999,2]
[338958627,1727089882330,-250.11017034,0.00012999,2]
[338958628,1727089882343,-249.88982966,0.00012999,2]
[338958629,1727089882354,-21.48019516,0.00012999,2]
[338958630,1727089882368,-478.51980484,0.00012999,2]
[338958631,1727089882379,-500.0,0.00012999,2]
[338958632,1727089882390,-49.92319516,0.00012999,2]
[338958633,1727089882403,-313.78799327,0.00012999,2]
[338958634,1727089882415,-136.28881157,0.00012999,2]
[338958635,1727089882424,-464.41382091,0.00012999,2]
[338958636,1727089882458,-35.58617909,0.00012999,2]
[338958637,1727089882468,-500.0,0.00012999,2]
[338958638,1727089882478,-119.8046636,0.00012999,2]
[338958639,1727089882873,-500.0,0.00012876,2]
[338958640,1727089882883,-500.0,0.00012876,2]
[338958641,1727089882892,-500.0,0.00012876,2]
[338958642,1727089882901,-500.0,0.00012876,2]
[338958643,1727089882910,-500.0,0.00012876,2]
[338958644,1727089882920,-500.0,0.00012895,2]
[338958645,1727089882929,-500.0,0.00012896,2]
[338958646,1727089882938,-247.52,0.00012896,2]
[338958647,1727089882948,-500.0,0.00012985,2]
[338958648,1727089882957,-500.0,0.00012986,2]
[338958649,1727089882967,-500.0,0.00012987,2]
[338958650,1727089882976,-500.0,0.00012987,2]
[338958651,1727089882986,-430.05,0.00012989,2]
[338958652,1727089882996,-500.0,0.0001299,2]
[338958653,1727089883005,-500.0,0.0001299,2]
[338958654,1727089883015,-500.0,0.0001299,2]
[338958655,1727089883024,-747.876037,0.00012991,2]
[338958656,1727089883033,-500.0,0.00012991,2]
[338958657,1727089883042,-500.0,0.00012991,2]
[338958658,1727089883051,-151.0,0.00012991,2]
[338958659,1727089883061,-747.876037,0.00012991,2]
[338958660,1727089883070,-500.0,0.00012992,2]
[338958661,1727089883079,-747.876037,0.00012992,2]
[338958662,1727089883089,-500.0,0.00012992,2]
[338958663,1727089883099,-747.876037,0.00012992,2]
[338958664,1727089883108,-151.0,0.00012993,2]
[338958665,1727089883117,-148.92585199,0.00012993,2]
[338958666,1727089915344,205.16,0.00010071,2]
[338958669,1727090028171,1000.0,0.00011976,2]
[338958670,1727090040235,165.62,0.00011976,2]
[338958671,1727090070963,250.0,0.00011981,2]
[338958672,1727090291959,240.53,0.00011968,2]
[338958674,1727090297816,199.08,0.00011968,2]
[338958676,1727090459995,194.9,0.00010045,2]
[338958678,1727090569571,200.0,0.00011969,2]
[338958681,1727090705241,-300.0,0.00012069,2]
[338958682,1727090705264,-206.0,0.0001207,2]
[338958683,1727090705286,-5000.0,0.0001207,2]
[338958684,1727090705308,-206.0,0.0001223,2]
[338958685,1727090705334,-194.9,0.00012309,2]
[338958686,1727090705355,-206.0,0.0001239,2]
[338958687,1727090705376,-228.312558,0.00012438,2]
[338958688,1727090705402,-5000.0,0.000125,2]
[338958689,1727090705424,-206.0,0.0001255,2]
[338958690,1727090705448,-452.787442,0.000127,2]
[338958691,1727090731435,250.0,0.00011992,2]
[338958693,1727090767683,510.33260926,0.0001,2]
[338958696,1727090859027,500.0,0.00012,5]
[338958697,1727090862290,243.5,0.00011968,2]
[338958698,1727090873539,1050.0,0.00011,2]
[338958700,1727090877587,941.39,0.00011968,2]
[338958701,1727090908621,500.0,0.00012,5]
[338958702,1727090912155,500.0,0.00012,5]
[338958703,1727090913897,500.0,0.00012,5]
[338958704,1727090914600,500.0,0.00012,5]
[338958705,1727090918027,500.0,0.00012,5]
[338958706,1727090927188,500.0,0.00012,5]
[338958749,1727091032342,175.41,0.00010062,2]
[338958751,1727091040082,-175.41,0.00012326,2]
[338958752,1727091040092,-300.0,0.00012699,2]
[338958753,1727091040102,-1360.3181003,0.000127,2]
[338958754,1727091040113,-2006.03862,0.000127,2]
[338958755,1727091040324,-582.81346383,0.000127,2]
[338958756,1727091040334,-358.1,0.000127,2]
[338958757,1727091040344,-1000.0,0.000127,2]
[338958758,1727091040353,-206.0,0.0001272,2]
[338958759,1727091040363,-101446.30853214,0.0001278,2]
[338958760,1727091040375,-317.64174,0.0001278,2]
[338958761,1727091040482,-718.00000015,0.0001278,2]
[338958764,1727091043167,-4765.41032284,0.00012776,2]
[338958765,1727091043178,-954.74097716,0.00012776,2]
[338958766,1727091043187,-4255.92721671,0.0001278,2]
[338958767,1727091043196,-154.01,0.000128,2]
[338958768,1727091043206,-150.0,0.000128,2]
[338958769,1727091043216,-422.78,0.000128,2]
[338958770,1727091043225,-358.1,0.000128,2]
[338958771,1727091043236,-150.0,0.00012826,2]
[338958772,1727091043246,-299.66750924,0.00012859,2]
[338958773,1727091043258,-500.0,0.00012876,2]
[338958774,1727091043269,-500.0,0.00012876,2]
[338958775,1727091043278,-500.0,0.00012876,2]
[338958776,1727091043287,-500.0,0.00012876,2]
[338958777,1727091043298,-500.0,0.00012876,2]
[338958778,1727091043309,-500.0,0.00012876,2]
[338958779,1727091043318,-500.0,0.00012876,2]
[338958780,1727091043330,-500.0,0.00012876,2]
[338958781,1727091043340,-500.0,0.00012876,2]
[338958782,1727091043351,-500.0,0.00012876,2]
[338958783,1727091043362,-500.0,0.00012876,2]
[338958784,1727091043373,-500.0,0.00012876,2]
[338958785,1727091043392,-500.0,0.00012876,2]
[338958786,1727091043401,-500.0,0.00012876,2]
[338958787,1727091043410,-500.0,0.00012876,2]
[338958788,1727091043419,-541.98965479,0.00012876,2]
[338958789,1727091043428,-500.0,0.00012876,2]
[338958790,1727091043437,-500.0,0.00012876,2]
[338958791,1727091043447,-500.0,0.00012876,2]
[338958792,1727091043456,-500.0,0.00012876,2]
[338958793,1727091043465,-500.0,0.00012876,2]
[338958794,1727091043475,-500.0,0.00012876,2]
[338958795,1727091043484,-500.0,0.00012876,2]
[338958796,1727091043493,-500.0,0.00012876,2]
[338958797,1727091043502,-500.0,0.00012876,2]
[338958798,1727091043511,-500.0,0.00012876,2]
[338958799,1727091043520,-500.0,0.00012876,2]
[338958800,1727091043529,-500.0,0.00012876,2]
[338958801,1727091043539,-500.0,0.00012876,2]
[338958802,1727091043548,-500.0,0.00012876,2]
[338958803,1727091043557,-500.0,0.00012876,2]
[338958804,1727091043567,-500.0,0.00012876,2]
[338958805,1727091043576,-500.0,0.00012876,2]
[338958806,1727091043587,-500.0,0.00012876,2]
[338958807,1727091043596,-500.0,0.00012876,2]
[338958808,1727091043606,-500.0,0.00012876,2]
[338958809,1727091043616,-500.0,0.00012876,2]
[338958810,1727091043627,-500.0,0.00012876,2]
[338958811,1727091043636,-500.0,0.00012876,2]
[338958812,1727091043645,-500.0,0.00012876,2]
[338958813,1727091043654,-500.0,0.00012876,2]
[338958814,1727091043663,-500.0,0.00012876,2]
[338958815,1727091043674,-500.0,0.00012876,2]
[338958816,1727091043685,-500.0,0.00012876,2]
[338958817,1727091043698,-500.0,0.00012876,2]
[338958818,1727091043708,-500.0,0.00012876,2]
[338958819,1727091043718,-500.0,0.00012876,2]
[338958820,1727091043727,-500.0,0.00012876,2]
[338958821,1727091043736,-500.0,0.00012876,2]
[338958822,1727091043746,-500.0,0.00012876,2]
[338958823,1727091043757,-500.0,0.00012876,2]
[338958824,1727091043768,-500.0,0.00012876,2]
[338958825,1727091043778,-500.0,0.00012876,2]
[338958826,1727091043787,-500.0,0.00012876,2]
[338958827,1727091043796,-457.95,0.00012876,2]
[338958828,1727091043806,-500.0,0.00012876,2]
[338958829,1727091043815,-500.0,0.00012876,2]
[338958830,1727091043826,-500.0,0.00012876,2]
[338958831,1727091043835,-500.0,0.00012876,2]
[338958832,1727091043844,-500.0,0.00012876,2]
[338958833,1727091043854,-500.0,0.00012876,2]
[338958834,1727091043863,-500.0,0.00012876,2]
[338958835,1727091043873,-500.0,0.00012876,2]
[338958836,1727091043883,-500.0,0.00012876,2]
[338958837,1727091043893,-500.0,0.00012876,2]
[338958838,1727091043903,-500.0,0.00012876,2]
[338958839,1727091043913,-500.0,0.00012876,2]
[338958840,1727091043922,-500.0,0.00012876,2]
[338958841,1727091043932,-500.0,0.00012876,2]
[338958842,1727091043943,-500.0,0.00012876,2]
[338958843,1727091043952,-214.71,0.00012876,2]
[338958844,1727091043962,-505.96,0.00012876,2]
[338958845,1727091043972,-505.96,0.00012876,2]
[338958846,1727091043981,-500.0,0.00012876,2]
[338958847,1727091043991,-500.0,0.00012876,2]
[338958848,1727091044001,-559.41,0.00012876,2]
[338958849,1727091044016,-559.41,0.00012876,2]
[338958850,1727091044026,-500.0,0.00012876,2]
[338958851,1727091044035,-500.0,0.00012876,2]
[338958852,1727091044046,-500.0,0.00012876,2]
[338958853,1727091044251,-500.0,0.00012876,2]
[338958854,1727091044261,-500.0,0.00012876,2]
[338958855,1727091044270,-500.0,0.00012876,2]
[338958856,1727091044279,-500.0,0.00012876,2]
[338958857,1727091044289,-500.0,0.00012876,2]
[338958858,1727091044299,-500.0,0.00012876,2]
[338958859,1727091044309,-500.0,0.00012876,2]
[338958860,1727091044318,-500.0,0.00012876,2]
[338958861,1727091044328,-500.0,0.00012876,2]
[338958862,1727091044337,-868.53,0.00012876,2]
[338958863,1727091044347,-868.53,0.00012876,2]
[338958864,1727091044357,-543.67,0.00012876,2]
[338958865,1727091044366,-543.67,0.00012876,2]
[338958866,1727091044375,-206.0,0.0001288,2]
[338958867,1727091044384,-500.0,0.00012894,2]
[338958868,1727091044394,-500.0,0.00012895,2]
[338958869,1727091044403,-500.0,0.00012895,2]
[338958870,1727091044413,-500.0,0.00012895,2]
[338958871,1727091044422,-500.0,0.00012895,2]
[338958872,1727091044432,-500.0,0.00012895,2]
[338958873,1727091044441,-500.0,0.00012895,2]
[338958874,1727091044451,-500.0,0.00012895,2]
[338958875,1727091044460,-500.0,0.00012895,2]
[338958876,1727091044470,-500.0,0.00012895,2]
[338958877,1727091044479,-500.0,0.00012895,2]
[338958878,1727091044488,-500.0,0.00012895,2]
[338958879,1727091044499,-500.0,0.00012895,2]
[338958880,1727091044508,-500.0,0.00012895,2]
[338958881,1727091044517,-136.42388226,0.00012895,2]
[338958882,1727091044557,-363.57611774,0.00012895,2]
[338958883,1727091044567,-500.0,0.00012895,2]
[338958884,1727091044576,-500.0,0.00012895,2]
[338958885,1727091044585,-500.0,0.00012895,2]
[338958886,1727091044595,-500.0,0.00012895,2]
[338958887,1727091044604,-500.0,0.00012895,2]
[338958888,1727091044614,-500.0,0.00012895,2]
[338958889,1727091044624,-500.0,0.00012895,2]
[338958890,1727091044634,-500.0,0.00012895,2]
[338958891,1727091044643,-500.0,0.00012895,2]
[338958892,1727091044652,-505.96,0.00012895,2]
[338958893,1727091044661,-500.0,0.00012895,2]
[338958894,1727091044671,-559.41,0.00012895,2]
[338958895,1727091044681,-500.0,0.00012895,2]
[338958896,1727091044690,-500.0,0.00012895,2]
[338958897,1727091044700,-500.0,0.00012895,2]
[338958898,1727091044709,-500.0,0.00012895,2]
[338958899,1727091044718,-500.0,0.00012895,2]
[338958900,1727091044728,-500.0,0.00012895,2]
[338958901,1727091044737,-868.53,0.00012895,2]
[338958902,1727091044747,-543.67,0.00012895,2]
[338958903,1727091044756,-500.0,0.00012895,2]
[338958904,1727091044766,-500.0,0.00012895,2]
[338958905,1727091044776,-500.0,0.00012895,2]
[338958906,1727091044786,-592.57,0.00012895,2]
[338958907,1727091044797,-4214.64,0.00012895,2]
[338958908,1727091044806,-500.0,0.00012895,2]
[338958909,1727091044816,-500.0,0.00012895,2]
[338958910,1727091044826,-500.0,0.00012895,2]
[338958911,1727091044835,-500.0,0.00012895,2]
[338958912,1727091044845,-500.0,0.00012895,2]
[338958913,1727091044854,-500.0,0.00012895,2]
[338958914,1727091044864,-600.49,0.00012895,2]
[338958915,1727091044873,-500.0,0.00012895,2]
[338958916,1727091044883,-500.0,0.00012895,2]
[338958917,1727091044892,-500.0,0.00012895,2]
[338958918,1727091044902,-901.94,0.00012895,2]
[338958919,1727091044912,-370.98112718,0.00012895,2]
[338958920,1727091044924,-129.01887282,0.00012895,2]
[338958921,1727091044934,-500.0,0.00012895,2]
[338958922,1727091044944,-306.19596969,0.00012895,2]
[338958923,1727091044965,-193.80403031,0.00012895,2]
[338958924,1727091044974,-348.12136626,0.00012895,2]
[338958925,1727091044986,-151.87863374,0.00012895,2]
[338958926,1727091044996,-500.0,0.00012895,2]
[338958927,1727091045006,-45.80719626,0.00012895,2]
[338958928,1727091045021,-454.19280374,0.00012895,2]
[338958929,1727091045030,-265.83547864,0.00012895,2]
[338958930,1727091045042,-234.16452136,0.00012895,2]
[338958931,1727091045053,-268.33459864,0.00012895,2]
[338958932,1727091045064,-231.66540136,0.00012895,2]
[338958933,1727091045074,-500.0,0.00012895,2]
[338958934,1727091045085,-284.43459864,0.00012895,2]
[338958935,1727091045096,-215.56540136,0.00012895,2]
[338958936,1727091045105,-501.01095904,0.00012895,2]
[338958937,1727091045115,-142.1085563,0.00012895,2]
[338958938,1727091045127,-357.8914437,0.00012895,2]
[338958939,1727091045137,-500.0,0.00012895,2]
[338958940,1727091045146,-500.0,0.00012895,2]
[338958941,1727091045156,-654.59,0.00012895,2]
[338958942,1727091045165,-500.0,0.00012895,2]
[338958943,1727091045175,-454.31,0.00012895,2]
[338958944,1727091045185,-762.79,0.00012895,2]
[338958945,1727091045195,-1646.74,0.00012895,2]
[338958946,1727091045204,-500.0,0.00012896,2]
[338958947,1727091045213,-500.0,0.00012896,2]
[338958948,1727091045222,-500.0,0.00012896,2]
[338958949,1727091045232,-500.0,0.00012896,2]
[338958950,1727091045241,-500.0,0.00012896,2]
[338958951,1727091045251,-500.0,0.00012896,2]
[338958952,1727091045260,-500.0,0.00012896,2]
[338958953,1727091045269,-500.0,0.00012896,2]
[338958954,1727091045279,-500.0,0.00012896,2]
[338958955,1727091045288,-500.0,0.00012896,2]
[338958956,1727091045297,-500.0,0.00012896,2]
[338958957,1727091045307,-500.0,0.00012896,2]
[338958958,1727091045317,-500.0,0.00012896,2]
[338958959,1727091045329,-500.0,0.00012896,2]
[338958960,1727091045339,-500.0,0.00012896,2]
[338958961,1727091045349,-500.0,0.00012896,2]
[338958962,1727091045358,-500.0,0.00012896,2]
[338958963,1727091045368,-500.0,0.00012896,2]
[338958964,1727091045382,-500.0,0.00012896,2]
[338958965,1727091045393,-1000.14,0.000129,2]
[338958966,1727091045404,-466.18178472,0.000129,2]
[338958967,1727091045414,-466.18178472,0.000129,2]
[338958968,1727091045426,-466.18178472,0.000129,2]
[338958969,1727091045438,-466.18178472,0.000129,2]
[338958970,1727091045449,-466.18178472,0.000129,2]
[338958971,1727091045461,-466.18178472,0.000129,2]
[338958972,1727091045472,-466.18178472,0.000129,2]
[338958973,1727091045482,-466.18178472,0.000129,2]
[338958974,1727091045493,-76.11332378,0.000129,2]
[338958975,1727091045507,-390.06846094,0.000129,2]
[338958976,1727091045518,-466.18178472,0.000129,2]
[338958977,1727091045529,-466.18178472,0.000129,2]
[338958978,1727091045541,-466.18178472,0.000129,2]
[338958979,1727091045552,-70.32292137,0.000129,2]
[338958980,1727091045570,-316.220239,0.000129,2]
[338958981,1727091045584,-79.63862435,0.000129,2]
[338958982,1727091045595,-466.18178472,0.000129,2]
[338958983,1727091045607,-466.18178472,0.000129,2]
[338958984,1727091045617,-83.77995675,0.000129,2]